fUSD/lending_fUSD_20260205
["ID","MTS","AMOUNT","RATE_DAILY","PERIOD"]
[404586920,1770316243317,-153.0,0.00017671,2]
[404586923,1770316243328,-151.0,0.00017671,2]
[404586924,1770316243338,-153.0,0.00017671,2]
[404586926,1770316243348,-151.0,0.00017671,2]
[404586928,1770316243357,-153.0,0.00017671,2]
[404586930,1770316243366,-151.0,0.00017671,2]
[404586932,1770316243375,-153.0,0.00017671,2]
[404586934,1770316243385,-151.0,0.00017671,2]
[404586937,1770316243396,-153.0,0.00017671,2]
[404586939,1770316243406,-151.0,0.00017671,2]
[404586941,1770316243415,-153.0,0.00017671,2]
[404586943,1770316243425,-156.64248685,0.00017671,2]
[404586945,1770316243434,-153.0,0.00017671,2]
[404586947,1770316243444,-153.0,0.00017671,2]
[404586949,1770316243453,-153.0,0.00017671,2]
[404586951,1770316243463,-151.0,0.00017671,2]
[404586952,1770316243472,-153.0,0.00017671,2]
[404586955,1770316243482,-151.0,0.00017671,2]
[404586957,1770316243492,-153.0,0.00017671,2]
[404586958,1770316243502,-240.68443262,0.00017671,2]
[404586961,1770316243511,-151.0,0.00017671,2]
[404586962,1770316243520,-151.0,0.00017671,2]
[404586964,1770316243530,-151.0,0.00017671,2]
[404586966,1770316243539,-151.0,0.00017671,2]
[404586969,1770316243548,-151.0,0.00017671,2]
[404586970,1770316243558,-1000.0,0.000177,6]
[404586972,1770316243566,-1271.0,0.00017715,2]
[404586974,1770316243576,-1205.0,0.00017715,2]
[404586977,1770316243585,-917.0,0.00017715,2]
[404586979,1770316243594,-2000.0,0.00017725,2]
[404586981,1770316243603,-194.72792766,0.00017725,2]
[404586983,1770316243612,-234.8731037,0.00017746,2]
[404586984,1770316243621,-377.43,0.00017747,2]
[404586986,1770316243630,-200.0,0.00017748,2]
[404586987,1770316243639,-150.0,0.00017748,2]
[404586988,1770316243650,-150.0,0.00017748,2]
[404586989,1770316243658,-150.0,0.00017748,2]
[404586990,1770316243667,-150.0,0.00017748,2]
[404586991,1770316243675,-150.0,0.00017748,2]
[404586992,1770316243685,-150.0,0.00017748,2]
[404586993,1770316243693,-150.0,0.00017748,2]
[404586994,1770316243701,-150.0,0.00017748,2]
[404586995,1770316243710,-553.0,0.0001779,2]
[404586996,1770316243719,-10935.0,0.0001779,2]
[404586997,1770316243728,-1000.0,0.000178,6]
[404586999,1770316243738,-500.0,0.00017808,2]
[404587001,1770316243747,-1000.0,0.00017808,2]
[404587003,1770316243756,-712.38,0.00017812,2]
[404587005,1770316243765,-184.22267,0.0001782,2]
[404587008,1770316243774,-184.22267,0.0001782,2]
[404587010,1770316243783,-200.0,0.00017856,2]
[404587012,1770316243792,-500.0,0.00017863,2]
[404587014,1770316243802,-152.01739561,0.00017867,2]
[404587016,1770316243811,-181.7,0.00017868,2]
[404587018,1770316243820,-4705.0,0.00017892,2]
[404587021,1770316243830,-1000.0,0.000179,2]
[404587024,1770316243839,-160.2005984,0.000179,2]
[404587027,1770316243847,-609.99999,0.000179,3]
[404587030,1770316243856,-1000.0,0.000179,6]
[404587033,1770316243865,-568.74776014,0.000179,2]
[404587036,1770316243874,-835.0,0.000179,2]
[404587038,1770316243883,-500.0,0.00017918,2]
[404587042,1770316243892,-500.0,0.00017972,2]
[404587045,1770316243903,-500.0,0.00017973,2]
[404587047,1770316243911,-500.0,0.00017973,2]
[404587049,1770316243921,-500.0,0.00017973,2]
[404587051,1770316243930,-500.0,0.00017973,2]
[404587053,1770316243938,-387.32253792,0.00017973,2]
[404587055,1770316243947,-500.0,0.00017973,2]
[404587057,1770316243956,-500.0,0.00017973,2]
[404587059,1770316243966,-500.0,0.00017973,2]
[404587061,1770316243976,-510.4331516,0.00017973,2]
[404587063,1770316243986,-506.98515424,0.00017973,2]
[404587066,1770316243995,-500.0,0.00017973,2]
[404587068,1770316244005,-509.2963147,0.00017973,2]
[404587069,1770316244014,-500.0,0.00017973,2]
[404587071,1770316244023,-500.0,0.00017973,2]
[404587074,1770316244032,-500.0,0.00017973,2]
[404587075,1770316244042,-506.90768866,0.00017973,2]
[404587078,1770316244051,-500.0,0.00017973,2]
[404587080,1770316244061,-511.65883454,0.00017973,2]
[404587081,1770316244071,-500.0,0.00017973,2]
[404587083,1770316244080,-507.08166095,0.00017973,2]
[404587086,1770316244089,-500.0,0.00017973,2]
[404587087,1770316244098,-500.0,0.00017973,2]
[404587090,1770316244108,-500.0,0.00017973,2]
[404587092,1770316244118,-500.0,0.00017973,2]
[404587094,1770316244127,-500.0,0.00017973,2]
[404587096,1770316244135,-500.0,0.00017973,2]
[404587098,1770316244144,-500.0,0.00017973,2]
[404587100,1770316244157,-500.0,0.00017973,2]
[404587102,1770316244166,-500.0,0.00017973,2]
[404587103,1770316244175,-500.0,0.00017973,2]
[404587106,1770316244185,-500.0,0.00017973,2]
[404587108,1770316244196,-500.0,0.00017973,2]
[404587110,1770316244206,-500.0,0.00017973,2]
[404587112,1770316244214,-6635.2220609,0.0001799,2]
[404587114,1770316244223,-151.0,0.00017997,2]
[404587115,1770316244232,-161.78,0.00017999,7]
[404587118,1770316244241,-1192.49835159,0.00018,2]
[404587120,1770316244251,-2001.16526783,0.00018,2]
[404587121,1770316244260,-1000.0,0.00018,2]
[404587123,1770316244272,-1000.0,0.00018,2]
[404587126,1770316244282,-1000.0,0.00018,2]
[404587127,1770316244291,-1000.0,0.00018,2]
[404587129,1770316244302,-1000.0,0.00018,2]
[404587132,1770316244312,-1000.0,0.00018,2]
[404587134,1770316244321,-1000.0,0.00018,2]
[404587135,1770316244330,-1000.0,0.00018,2]
[404587137,1770316244341,-1000.0,0.00018,2]
[404587139,1770316244350,-1000.0,0.00018,2]
[404587142,1770316244361,-1000.0,0.00018,2]
[404587144,1770316244370,-1000.0,0.00018,2]
[404587146,1770316244380,-1000.0,0.00018,2]
[404587148,1770316244389,-1000.0,0.00018,2]
[404587150,1770316244401,-1000.0,0.00018,2]
[404587152,1770316244410,-1000.0,0.00018,2]
[404587154,1770316244419,-1000.0,0.00018,2]
[404587156,1770316244429,-1000.0,0.00018,2]
[404587158,1770316244438,-1000.0,0.00018,2]
[404587174,1770316244447,-1000.0,0.00018,2]
[404587178,1770316244618,-1000.0,0.00018,2]
[404587181,1770316244629,-1000.0,0.00018,2]
[404587183,1770316244639,-1000.0,0.00018,2]
[404587185,1770316244653,-1146.13843053,0.00018,2]
[404587187,1770316244663,-1215.45006417,0.00018,2]
[404587189,1770316244674,-193.0,0.00018,2]
[404587191,1770316244684,-200.0,0.00018,2]
[404587193,1770316244693,-150.0,0.00018,2]
[404587195,1770316244703,-4658.616813,0.00018,2]
[404587197,1770316244713,-150.0,0.00018,2]
[404587199,1770316244722,-13302.49611968,0.00018,2]
[404587201,1770316244732,-150.0,0.00018,2]
[404587203,1770316244742,-3436.99024084,0.00018,2]
[404587205,1770316244751,-151.0,0.00018,2]
[404587207,1770316244761,-151.0,0.00018,2]
[404587209,1770316244770,-151.0,0.00018,2]
[404587211,1770316244780,-188.275995,0.00018,2]
[404587213,1770316244789,-151.0,0.00018,2]
[404587215,1770316244798,-151.0,0.00018,2]
[404587217,1770316244808,-151.0,0.00018,2]
[404587219,1770316244817,-151.0,0.00018,2]
[404587221,1770316244826,-151.0,0.00018,2]
[404587223,1770316244836,-151.0,0.00018,2]
[404587225,1770316244845,-151.0,0.00018,2]
[404587227,1770316244855,-151.0,0.00018,2]
[404587229,1770316244865,-151.0,0.00018,2]
[404587231,1770316244875,-151.0,0.00018,2]
[404587233,1770316244884,-151.0,0.00018,2]
[404587235,1770316244893,-499.999999,0.00018,2]
[404587237,1770316244908,-200.0,0.00018,2]
[404587239,1770316244918,-928.75084,0.00018,2]
[404587241,1770316244927,-176.58518,0.00018,2]
[404587243,1770316244937,-928.75085,0.00018,2]
[404587245,1770316244947,-928.75084,0.00018,2]
[404587247,1770316244957,-176.58518,0.00018,2]
[404587249,1770316244967,-184.22267,0.00018,2]
[404587251,1770316244977,-184.22268,0.00018,2]
[404587253,1770316244987,-184.22267,0.00018,2]
[404587255,1770316244997,-184.22267,0.00018,2]
[404587257,1770316245006,-506.0,0.0001801,2]
[404587259,1770316245015,-150.46,0.00018014,2]
[404587262,1770316245027,-377.43,0.00018021,2]
[404587264,1770316245036,-500.0,0.00018027,2]
[404587266,1770316245046,-1000.0,0.00018029,2]
[404587268,1770316245055,-500.0,0.00018082,2]
[404587270,1770316245064,-1000.0,0.00018082,2]
[404587272,1770316245074,-151.0,0.00018085,2]
[404587274,1770316245083,-1780.59304592,0.000181,2]
[404587276,1770316245092,-500.0,0.00018137,2]
[404587278,1770316245102,-6014.0799688,0.00018139,2]
[404587280,1770316245111,-500.0,0.00018192,2]
[404587282,1770316245120,-500.0,0.00018246,2]
[404587284,1770316245130,-2000.0,0.00018273,2]
[404587286,1770316245139,-201.93286099,0.00018273,2]
[404587288,1770316245155,-839.0,0.0001828,2]
[404587290,1770316245165,-377.43,0.00018295,2]
[404587292,1770316245176,-221.88177425,0.00018301,2]
[404587294,1770316245185,-88543.16,0.00018356,2]
[404587296,1770316245195,-1000.0,0.00018356,2]
[404587298,1770316245204,-4705.0,0.00018359,2]
[404587300,1770316245214,-5888.0,0.00018419,2]
[404587302,1770316245223,-956.19349362,0.00018521,2]
[404587304,1770316245232,-408.8446401,0.00018521,2]
[404587306,1770316245243,-1000.0,0.00018521,2]
[404587308,1770316245254,-1000.0,0.00018521,2]
[404587310,1770316245268,-1000.0,0.00018521,2]
[404587312,1770316245278,-626.50935226,0.00018521,2]
[404587314,1770316245288,-1000.0,0.00018521,2]
[404587317,1770316245299,-1000.0,0.00018521,2]
[404587318,1770316245308,-1000.0,0.00018521,2]
[404587320,1770316245318,-526.27576932,0.00018521,2]
[404587323,1770316245331,-1000.0,0.00018521,2]
[404587325,1770316245340,-1000.0,0.00018521,2]
[404587326,1770316245350,-1000.0,0.00018521,2]
[404587328,1770316245359,-1000.0,0.00018521,2]
[404587330,1770316245368,-1000.0,0.00018521,2]
[404587332,1770316245378,-267.60703924,0.00018521,2]
[404587334,1770316245388,-1000.0,0.00018521,2]
[404587336,1770316245400,-490.41332566,0.00018521,2]
[404587339,1770316245409,-510.13526908,0.00018521,2]
[404587340,1770316245418,-677.28221394,0.00018521,2]
[404587343,1770316245428,-1000.0,0.00018521,2]
[404587344,1770316245438,-1000.0,0.00018521,2]
[404587346,1770316245448,-1000.0,0.00018521,2]
[404587348,1770316245460,-1000.0,0.00018521,2]
[404587350,1770316245470,-1000.0,0.00018521,2]
[404587352,1770316245481,-1000.0,0.00018521,2]
[404587355,1770316245492,-500.0,0.00018538,2]
[404587357,1770316245501,-166.68,0.00018544,2]
[404587359,1770316245511,-377.43,0.00018569,2]
[404587360,1770316245519,-1000.0,0.0001863,2]
[404587363,1770316245529,-553.0,0.00018645,2]
[404587364,1770316245538,-965.28313497,0.00018652,2]
[404587366,1770316245547,-337.58,0.00018777,2]
[404587369,1770316245557,-346.92554585,0.00018819,2]
[404587370,1770316245566,-150.0,0.0001882,2]
[404587373,1770316245575,-483.7514354,0.0001882,2]
[404587375,1770316245585,-599.60298507,0.0001882,2]
[404587376,1770316245594,-2000.0,0.00018821,2]
[404587379,1770316245604,-209.40437684,0.00018821,2]
[404587380,1770316245613,-1000.0,0.00018828,2]
[404587382,1770316245622,-377.43,0.00018843,2]
[404587384,1770316245632,-312.31034828,0.00018843,2]
[404587386,1770316245641,-823.0,0.00018859,2]
[404587389,1770316245654,-16795.17339208,0.00018888,2]
[404587390,1770316245663,-354.7810817,0.000189,2]
[404587392,1770316245673,-1503.0,0.000189,2]
[404587394,1770316245683,-153.0,0.000189,2]
[404587396,1770316245693,-159.0,0.000189,2]
[404587398,1770316245702,-1503.0,0.000189,2]
[404587401,1770316245711,-153.0,0.000189,2]
[404587403,1770316245721,-153.0,0.000189,2]
[404587405,1770316245729,-153.0,0.000189,2]
[404587407,1770316245739,-151.0,0.000189,2]
[404587408,1770316245748,-1503.0,0.000189,2]
[404587411,1770316245757,-1503.0,0.000189,2]
[404587412,1770316245767,-1503.0,0.000189,2]
[404587415,1770316245777,-1503.0,0.000189,2]
[404587417,1770316245787,-1503.0,0.000189,2]
[404587419,1770316245797,-1503.0,0.000189,2]
[404587421,1770316245806,-1503.0,0.000189,2]
[404587423,1770316245815,-151.0,0.000189,2]
[404587425,1770316245823,-153.0,0.000189,2]
[404587427,1770316245832,-151.0,0.000189,2]
[404587428,1770316245842,-1503.0,0.000189,2]
[404587430,1770316245851,-153.0,0.000189,2]
[404587432,1770316245860,-1503.0,0.000189,2]
[404587434,1770316245870,-151.0,0.000189,2]
[404587436,1770316245879,-1503.0,0.000189,2]
[404587439,1770316245890,-151.0,0.000189,2]
[404587440,1770316245902,-1503.0,0.000189,2]
[404587442,1770316245911,-151.0,0.000189,2]
[404587444,1770316245921,-1503.0,0.000189,2]
[404587446,1770316245930,-151.0,0.000189,2]
[404587448,1770316245939,-1503.0,0.000189,2]
[404587450,1770316245949,-151.0,0.000189,2]
[404587452,1770316245959,-1503.0,0.000189,2]
[404587454,1770316245968,-1503.0,0.000189,2]
[404587456,1770316245977,-151.0,0.000189,2]
[404587460,1770316245988,-1503.0,0.000189,2]
[404587461,1770316245997,-151.0,0.000189,2]
[404587464,1770316246007,-1503.0,0.000189,2]
[404587467,1770316246016,-151.0,0.000189,2]
[404587469,1770316246025,-1503.0,0.000189,2]
[404587471,1770316246034,-151.0,0.000189,2]
[404587473,1770316246043,-1503.0,0.000189,2]
[404587475,1770316246053,-151.0,0.000189,2]
[404587477,1770316246062,-1503.0,0.000189,2]
[404587479,1770316246071,-302.0,0.000189,2]
[404587481,1770316246081,-1503.0,0.000189,2]
[404587483,1770316246090,-151.0,0.000189,2]
[404587485,1770316246099,-151.0,0.000189,2]
[404587488,1770316246109,-1503.0,0.000189,2]
[404587490,1770316246118,-1503.0,0.000189,2]
[404587492,1770316246127,-1503.0,0.000189,2]
[404587494,1770316246137,-1503.0,0.000189,2]
[404587496,1770316246152,-1503.0,0.000189,2]
[404587498,1770316246161,-1503.0,0.000189,2]
[404587499,1770316246170,-1503.0,0.000189,2]
[404587500,1770316246178,-1503.0,0.000189,2]
[404587501,1770316246187,-1503.0,0.000189,2]
[404587502,1770316246196,-1503.0,0.000189,2]
[404587503,1770316246204,-1503.0,0.000189,2]
[404587504,1770316246213,-1503.0,0.000189,2]
[404587505,1770316246222,-1503.0,0.000189,2]
[404587506,1770316246232,-1503.0,0.000189,2]
[404587507,1770316246241,-1503.0,0.000189,2]
[404587508,1770316246251,-1503.0,0.000189,2]
[404587509,1770316246261,-1503.0,0.000189,2]
[404587511,1770316246271,-1503.0,0.000189,2]
[404587513,1770316246281,-1503.0,0.000189,2]
[404587515,1770316246290,-167.70093456,0.000189,2]
[404587517,1770316246299,-1000.0,0.00018904,2]
[404587519,1770316246310,-506.0,0.00018909,2]
[404587521,1770316246319,-6014.0799688,0.00018915,2]
[404587523,1770316246330,-181.68686723,0.00018926,2]
[404587525,1770316246342,-186.12,0.0001899,2]
[404587528,1770316246352,-151.0,0.00018997,2]
[404587530,1770316246361,-5172.37306373,0.00019,2]
[404587532,1770316246371,-657.86442802,0.00019,2]
[404587533,1770316246380,-746.37849089,0.00019,2]
[404587535,1770316246390,-35342.01259156,0.00019,2]
[404587537,1770316246405,-350.0,0.00019,2]
[404587539,1770316246414,-150.0,0.00019006,2]
[404587541,1770316246424,-181.7,0.00019016,2]
[404587543,1770316246433,-1500.0,0.00019068,2]
[404587545,1770316246442,-1504.2260666,0.00019068,2]
[404587547,1770316246451,-1500.0,0.00019068,2]
[404587549,1770316246461,-1500.0,0.00019068,2]
[404587552,1770316246470,-1500.0,0.00019068,2]
[404587554,1770316246479,-1500.0,0.00019068,2]
[404587556,1770316246489,-1500.0,0.00019068,2]
[404587558,1770316246498,-908.89576694,0.00019068,2]
[404587560,1770316246507,-1500.0,0.00019068,2]
[404587562,1770316246517,-1500.0,0.00019068,2]
[404587564,1770316246525,-1500.0,0.00019068,2]
[404587566,1770316246534,-1500.0,0.00019068,2]
[404587568,1770316246544,-1500.0,0.00019068,2]
[404587570,1770316246553,-1500.0,0.00019068,2]
[404587572,1770316246562,-1500.0,0.00019068,2]
[404587573,1770316246571,-1500.0,0.00019068,2]
[404587575,1770316246581,-1500.0,0.00019068,2]
[404587577,1770316246590,-1500.0,0.00019068,2]
[404587580,1770316246599,-377.43,0.00019117,2]
[404587582,1770316246608,-150.46,0.0001914,2]
[404587583,1770316246617,-3000.0,0.00019178,2]
[404587585,1770316246627,-500.0,0.00019178,2]
[404587587,1770316246636,-20149.24,0.00019178,2]
[404587590,1770316246650,-256.69742234,0.00019178,2]
[404587592,1770316246661,-151.0,0.00019178,2]
[404587594,1770316246670,-151.0,0.00019178,2]
[404587595,1770316246680,-151.0,0.00019178,2]
[404587598,1770316246691,-151.0,0.00019178,2]
[404587600,1770316246700,-151.0,0.00019178,2]
[404587604,1770316246709,-151.0,0.00019178,2]
[404587608,1770316246719,-1514.793586,0.00019178,2]
[404587612,1770316246729,-1514.793586,0.00019178,2]
[404587616,1770316246738,-1514.793586,0.00019178,2]
[404587620,1770316246748,-1514.793586,0.00019178,2]
[404587625,1770316246758,-1514.793586,0.00019178,2]
[404587630,1770316246767,-1514.793586,0.00019178,2]
[404587633,1770316246776,-1514.793586,0.00019178,2]
[404587638,1770316246785,-1514.793586,0.00019178,2]
[404587640,1770316246795,-1000.0,0.00019178,2]
[404587644,1770316246805,-160.89366842,0.00019178,2]
[404587646,1770316246814,-150.0,0.00019178,2]
[404587649,1770316246823,-500.0,0.00019233,2]
[404587653,1770316246833,-500.0,0.00019288,2]
[404587656,1770316246842,-158.02201093,0.00019342,2]
[404587658,1770316246851,-2000.0,0.00019369,2]
[404587662,1770316246861,-217.15233878,0.00019369,2]
[404587665,1770316246870,-377.43,0.00019391,2]
[404587667,1770316246879,-5410.7359995,0.00019425,2]
[404587669,1770316246887,-1000.0,0.00019452,2]
[404587672,1770316246901,-161.0,0.00019486,3]
[404587674,1770316246911,-151.0,0.00019616,2]
[404587676,1770316246921,-151.0,0.00019616,2]
[404587678,1770316246930,-151.0,0.00019616,2]
[404587680,1770316246939,-2000.0,0.00019616,2]
[404587682,1770316246948,-2000.0,0.00019616,2]
[404587684,1770316246958,-2149.51215349,0.00019616,2]
[404587685,1770316246967,-2000.0,0.00019616,2]
[404587687,1770316246977,-1990.99013013,0.00019616,2]
[404587689,1770316246986,-589.95947915,0.00019616,2]
[404587691,1770316246995,-500.0,0.00019616,2]
[404587693,1770316247005,-2000.0,0.00019616,2]
[404587695,1770316247014,-2000.0,0.00019616,2]
[404587697,1770316247023,-2000.0,0.00019616,2]
[404587699,1770316247032,-692.37886657,0.00019616,2]
[404587701,1770316247041,-1222.56300425,0.00019616,2]
[404587703,1770316247051,-1010.00911744,0.00019616,2]
[404587705,1770316247062,-2000.0,0.00019616,2]
[404587707,1770316247074,-2000.0,0.00019616,2]
[404587709,1770316247084,-2000.0,0.00019616,2]
[404587711,1770316247095,-377.43,0.00019665,2]
[404587713,1770316247105,-6014.0799688,0.00019691,2]
[404587715,1770316247116,-2000.0,0.000197,2]
[404587717,1770316247127,-500.0,0.00019726,2]
[404587719,1770316247136,-1000.0,0.00019726,2]
[404587721,1770316247146,-250.0,0.00019726,2]
[404587723,1770316247164,-1000.0,0.00019735,2]
[404587725,1770316247174,-500.0,0.00019781,2]
[404587726,1770316247182,-712.38,0.00019791,2]
[404587728,1770316247192,-506.0,0.00019807,3]
[404587730,1770316247201,-500.0,0.00019836,2]
[404587733,1770316247211,-152.01739561,0.00019852,2]
[404587735,1770316247222,-500.0,0.0001989,2]
[404587736,1770316247231,-4927.98102042,0.000199,3]
[404587738,1770316247240,-160.0,0.000199,3]
[404587741,1770316247251,-2000.0,0.00019917,2]
[404587743,1770316247263,-225.18697532,0.00019917,2]
[404587745,1770316247272,-377.49534042,0.00019939,2]
[404587746,1770316247282,-500.0,0.00019945,2]
[404587748,1770316247292,-300.0,0.00019973,2]
[404587751,1770316247302,-150.0,0.00019973,2]
[404587752,1770316247313,-500.0,0.00019973,2]
[404587755,1770316247323,-164.53536776,0.00019973,2]
[404587757,1770316247333,-150.0,0.00019999,2]
[404587758,1770316247342,-500.0,0.00019999,2]
[404587760,1770316247352,-450.0,0.00019999,2]
[404587763,1770316247361,-190.30889596,0.00019999,2]
[404587764,1770316247371,-227.58665419,0.00019999,2]
[404587766,1770316247380,-500.0,0.00019999,2]
[404587768,1770316247390,-500.0,0.0002,2]
[404587770,1770316247405,-1534.29073039,0.0002,2]
[404587772,1770316247415,-176.62256918,0.0002,2]
[404587775,1770316247424,-25611.76994864,0.0002,2]
[404587777,1770316247435,-280971.60146832,0.0002,4]
[404587778,1770316247444,-2464.68,0.0002,2]
[404587781,1770316247454,-8300.0,0.0002,4]
[404587782,1770316247464,-3950.0,0.0002,2]
[404587785,1770316247474,-1295.36553789,0.0002,2]
[404587787,1770316247484,-1045.6312059,0.0002,2]
[404587788,1770316247493,-2865.45987564,0.0002,2]
[404587790,1770316247503,-12932.28744356,0.0002,2]
[404587792,1770316247512,-152.0,0.0002,2]
[404587794,1770316247521,-10001.42567092,0.0002,2]
[404587796,1770316247531,-761.9471135,0.0002,3]
[404587798,1770316247542,-164.66147692,0.0002,2]
[404587800,1770316247552,-559.47,0.0002,2]
[404587803,1770316247563,-335.61112795,0.0002,2]
[404587805,1770316247572,-200.0,0.0002,2]
[404587806,1770316247581,-150.0,0.0002,7]
[404587809,1770316247591,-500.0,0.0002,2]
[404587811,1770316247600,-151.0,0.0002,2]
[404587813,1770316247610,-151.0,0.0002,2]
[404587814,1770316247619,-151.0,0.0002,2]
[404587817,1770316247629,-289.082365,0.0002,2]
[404587818,1770316247638,-151.0,0.0002,2]
[404587820,1770316247653,-151.0,0.0002,2]
[404587822,1770316247662,-151.0,0.0002,2]
[404587824,1770316247672,-151.0,0.0002,2]
[404587827,1770316247681,-151.0,0.0002,2]
[404587828,1770316247690,-187.88,0.0002,2]
[404587830,1770316247700,-1514.793586,0.0002,2]
[404587832,1770316247711,-1514.793586,0.0002,2]
[404587834,1770316247720,-1514.793586,0.0002,2]
[404587836,1770316247730,-1514.793586,0.0002,2]
[404587838,1770316247739,-308.806092,0.0002,2]
[404587840,1770316247748,-308.806092,0.0002,2]
[404587842,1770316247758,-308.806092,0.0002,2]
[404587844,1770316247768,-151.0,0.0002,2]
[404587846,1770316247777,-308.806092,0.0002,2]
[404587848,1770316247786,-200.0,0.0002,2]
[404587850,1770316247796,-1999.0,0.0002,2]
[404587852,1770316247805,-500.0,0.00020001,2]
[404587854,1770316247816,-500.0,0.00020002,2]
[404587872,1770316247979,-499.9999,0.00020003,2]
[404587875,1770316247989,-8720.0,0.0002001,2]
[404587877,1770316247998,-625.66128038,0.00020055,2]
[404587879,1770316248008,-2500.0,0.00020164,2]
[404587881,1770316248017,-2500.0,0.00020164,2]
[404587883,1770316248026,-1680.57286649,0.00020164,2]
[404587885,1770316248036,-2500.0,0.00020164,2]
[404587886,1770316248045,-239.79106788,0.00020164,2]
[404587889,1770316248055,-2500.0,0.00020164,2]
[404587891,1770316248064,-252.99800025,0.00020164,2]
[404587892,1770316248073,-585.35553591,0.00020164,2]
[404587895,1770316248083,-359.76179104,0.00020188,2]
[404587897,1770316248092,-150.46,0.00020266,2]
[404587899,1770316248102,-765.49950983,0.00020273,3]
[404587900,1770316248111,-264.22979882,0.00020274,2]
[404587903,1770316248120,-3254.0,0.00020341,2]
[404587904,1770316248130,-1317.0,0.00020341,2]
[404587906,1770316248139,-2446.0,0.00020341,2]
[404587908,1770316248155,-3482.0,0.00020341,2]
[404587910,1770316248165,-600.0,0.0002037,3]
[404587913,1770316248175,-600.0,0.0002037,3]
[404587915,1770316248184,-181.7,0.00020443,2]
[404587916,1770316248194,-2000.0,0.00020465,2]
[404587918,1770316248203,-233.51889341,0.00020465,2]
[404587920,1770316248212,-6014.0799688,0.00020466,2]
[404587922,1770316248222,-174.63368133,0.00020488,2]
[404587924,1770316248231,-600.0,0.00020521,2]
[404587926,1770316248240,-250.0,0.00020521,2]
[404587928,1770316248250,-523.22331426,0.00020521,2]
[404587930,1770316248260,-21547.47,0.00020548,2]
[404587932,1770316248271,-154.75,0.00020548,2]
[404587934,1770316248280,-1152.0,0.00020654,2]
[404587936,1770316248289,-174.63368133,0.00020695,2]
[404587938,1770316248298,-22679.44968328,0.000207,2]
[404587940,1770316248307,-151.0,0.000207,2]
[404587942,1770316248317,-506.0,0.00020705,4]
[404587944,1770316248327,-1000.0,0.00020711,2]
[404587946,1770316248340,-2439.89783247,0.00020712,2]
[404587948,1770316248351,-3128.30908747,0.00020712,2]
[404587950,1770316248360,-3000.0,0.00020712,2]
[404587953,1770316248370,-3000.0,0.00020712,2]
[404587955,1770316248380,-1271.0,0.00020715,2]
[404587957,1770316248389,-1205.0,0.00020715,2]
[404587958,1770316248403,-917.0,0.00020715,2]
[404587960,1770316248411,-150.0,0.00020748,2]
[404587962,1770316248421,-150.0,0.00020748,2]
[404587964,1770316248430,-150.0,0.00020748,2]
[404587966,1770316248440,-150.0,0.00020748,2]
[404587968,1770316248449,-150.0,0.00020748,2]
[404587970,1770316248459,-150.0,0.00020748,2]
[404587972,1770316248468,-150.0,0.00020748,2]
[404587974,1770316248478,-150.0,0.00020748,2]